fUST/lending_fUST_20250421
["ID","MTS","AMOUNT","RATE_DAILY","PERIOD"]
[358463400,1745178638236,-76.27935388,0.00016806,2]
[358463401,1745178638245,-1378.55866497,0.00016806,2]
[358463402,1745178638255,-1378.55866497,0.00016806,2]
[358463403,1745178638264,-1378.55866497,0.00016806,2]
[358463404,1745178638273,-1378.55866497,0.00016806,2]
[358463405,1745178638282,-1378.55866497,0.00016806,2]
[358463406,1745178638292,-1378.55866497,0.00016806,2]
[358463407,1745178638301,-1378.55866497,0.00016806,2]
[358463408,1745178638310,-1378.55866497,0.00016806,2]
[358463409,1745178638320,-1378.55866497,0.00016806,2]
[358463410,1745178638333,-1378.55866497,0.00016806,2]
[358463411,1745178638343,-1378.55866497,0.00016806,2]
[358463412,1745178638352,-1378.55866497,0.00016806,2]
[358463413,1745178638361,-1378.55866497,0.00016806,2]
[358463414,1745178638371,-1378.55866497,0.00016806,2]
[358463416,1745178638380,-1378.55866497,0.00016806,2]
[358463418,1745178638389,-1378.55866497,0.00016806,2]
[358463419,1745178638399,-1378.55866497,0.00016806,2]
[358463420,1745178638409,-1378.55866497,0.00016806,2]
[358463421,1745178638419,-1378.55866497,0.00016806,2]
[358463422,1745178638428,-1378.55866497,0.00016806,2]
[358463423,1745178638440,-1378.55866497,0.00016806,2]
[358463424,1745178638453,-1378.55866497,0.00016806,2]
[358463425,1745178638466,-1378.55866497,0.00016806,2]
[358463426,1745178638478,-1378.55866497,0.00016806,2]
[358463427,1745178638490,-3289.16842311,0.00016806,2]
[358463428,1745178638501,-3289.16842311,0.00016806,2]
[358463429,1745178638513,-3289.16842311,0.00016806,2]
[358463430,1745178638525,-3289.16842311,0.00016806,2]
[358463431,1745178638537,-3289.16842311,0.00016806,2]
[358463432,1745178638550,-3289.16842311,0.00016806,2]
[358463433,1745178638562,-3289.16842311,0.00016806,2]
[358463434,1745178638575,-3289.16842311,0.00016806,2]
[358463435,1745178638587,-3289.16842311,0.00016806,2]
[358463436,1745178638599,-3289.16842311,0.00016806,2]
[358463437,1745178638612,-3289.16842311,0.00016806,2]
[358463438,1745178638624,-3289.16842311,0.00016806,2]
[358463439,1745178638635,-3289.16842311,0.00016806,2]
[358463440,1745178638647,-3289.16842311,0.00016806,2]
[358463441,1745178638659,-3289.16842311,0.00016806,2]
[358463442,1745178638670,-3289.16842311,0.00016806,2]
[358463443,1745178638682,-3289.16842311,0.00016806,2]
[358463444,1745178638695,-3289.16842311,0.00016806,2]
[358463445,1745178638706,-3289.16842311,0.00016806,2]
[358463446,1745178638719,-3289.16842311,0.00016806,2]
[358463447,1745178638729,-3289.16842311,0.00016806,2]
[358463448,1745178638739,-3289.16842311,0.00016806,2]
[358463449,1745178638751,-3289.16842311,0.00016806,2]
[358463450,1745178638761,-3289.16842311,0.00016806,2]
[358463451,1745178638772,-3289.16842311,0.00016806,2]
[358463452,1745178638784,-3289.16842311,0.00016806,2]
[358463453,1745178638796,-3289.16842311,0.00016806,2]
[358463454,1745178638809,-3289.16842311,0.00016806,2]
[358463455,1745178638822,-3289.16842311,0.00016806,2]
[358463456,1745178638833,-3289.16842311,0.00016806,2]
[358463457,1745178638846,-3289.16842311,0.00016806,2]
[358463458,1745178638859,-3289.16842311,0.00016806,2]
[358463459,1745178638871,-3289.16842311,0.00016806,2]
[358463460,1745178638882,-3289.16842311,0.00016806,2]
[358463461,1745178638893,-3289.16842311,0.00016806,2]
[358463462,1745178638906,-3289.16842311,0.00016806,2]
[358463463,1745178638916,-151.0,0.00016807,2]
[358463464,1745178638927,-151.0,0.00016807,2]
[358463465,1745178638939,-151.0,0.00016807,2]
[358463466,1745178638952,-151.0,0.00016807,2]
[358463467,1745178638963,-180.593159,0.00016807,2]
[358463468,1745178638973,-180.593159,0.00016807,2]
[358463469,1745178638984,-180.593159,0.00016807,2]
[358463470,1745178638996,-180.593159,0.00016807,2]
[358463471,1745178639008,-180.593159,0.00016807,2]
[358463472,1745178639020,-180.593159,0.00016807,2]
[358463473,1745178639031,-151.0,0.00016807,2]
[358463474,1745178639042,-225.079011,0.00016807,2]
[358463475,1745178639053,-151.0,0.00016807,2]
[358463476,1745178639064,-151.0,0.00016807,2]
[358463477,1745178639076,-151.0,0.00016807,2]
[358463478,1745178639087,-151.0,0.00016807,2]
[358463479,1745178639099,-151.0,0.00016807,2]
[358463480,1745178639110,-151.0,0.00016807,2]
[358463481,1745178639121,-208.243582,0.00016807,2]
[358463482,1745178639132,-208.243582,0.00016807,2]
[358463483,1745178639143,-208.243582,0.00016807,2]
[358463484,1745178639154,-208.243582,0.00016807,2]
[358463485,1745178639165,-208.243582,0.00016807,2]
[358463486,1745178639176,-208.243582,0.00016807,2]
[358463487,1745178639187,-151.0,0.00016807,2]
[358463488,1745178639199,-151.0,0.00016808,2]
[358463489,1745178639210,-180.593159,0.00016808,2]
[358463490,1745178639222,-180.593159,0.00016808,2]
[358463491,1745178639232,-151.0,0.00016808,2]
[358463492,1745178639243,-151.0,0.00016808,2]
[358463493,1745178639254,-208.243582,0.00016808,2]
[358463494,1745178639266,-208.243582,0.00016808,2]
[358463495,1745178639277,-151.0,0.0001687,2]
[358463496,1745178639288,-180.593159,0.0001687,2]
[358463497,1745178639300,-180.593159,0.0001687,2]
[358463498,1745178639311,-151.0,0.0001687,2]
[358463499,1745178639324,-151.0,0.0001687,2]
[358463500,1745178639338,-208.243582,0.0001687,2]
[358463501,1745178639348,-208.243582,0.0001687,2]
[358463502,1745178639359,-35817.0844777,0.00016872,2]
[358463503,1745178639371,-500.0,0.00016873,2]
[358463504,1745178639381,-500.0,0.00016873,2]
[358463505,1745178639392,-501.92469021,0.00016873,2]
[358463506,1745178639404,-500.0,0.00016873,2]
[358463507,1745178639415,-500.0,0.00016873,2]
[358463508,1745178639426,-160.3321055,0.00016873,2]
[358463509,1745178639437,-500.0,0.00016873,2]
[358463510,1745178639447,-501.11327995,0.00016873,2]
[358463511,1745178639458,-170.17171587,0.00016873,2]
[358463512,1745178639468,-501.57118886,0.00016873,2]
[358463513,1745178639479,-500.85409799,0.00016873,2]
[358463514,1745178639490,-466.56676556,0.00016873,2]
[358463515,1745178639500,-501.68181251,0.00016873,2]
[358463516,1745178639511,-500.0,0.00016873,2]
[358463517,1745178639522,-500.0,0.00016873,2]
[358463518,1745178639533,-200.64834773,0.00016873,2]
[358463519,1745178639544,-501.82611513,0.00016873,2]
[358463520,1745178639555,-503.03549967,0.00016873,2]
[358463521,1745178639566,-500.0,0.00016873,2]
[358463522,1745178639578,-500.0,0.00016873,2]
[358463523,1745178639588,-504.69394554,0.00016873,2]
[358463524,1745178639599,-500.0,0.00016873,2]
[358463525,1745178639609,-500.0,0.00016873,2]
[358463526,1745178639621,-153.12562648,0.00016873,2]
[358463527,1745178639631,-294.78031043,0.00016873,2]
[358463528,1745178639642,-500.0,0.00016873,2]
[358463529,1745178639653,-270.80703857,0.00016873,2]
[358463530,1745178639664,-500.0,0.00016873,2]
[358463531,1745178639675,-500.0,0.00016873,2]
[358463532,1745178639686,-496.21733159,0.00016873,2]
[358463533,1745178639697,-500.0,0.00016873,2]
[358463534,1745178639708,-500.0,0.00016873,2]
[358463535,1745178639720,-505.86781624,0.00016873,2]
[358463536,1745178639730,-500.0,0.00016873,2]
[358463537,1745178639739,-500.0,0.00016873,2]
[358463538,1745178639750,-500.0,0.00016873,2]
[358463539,1745178639759,-500.0,0.00016873,2]
[358463540,1745178639769,-504.50474721,0.00016873,2]
[358463541,1745178639778,-222.70799691,0.00016873,2]
[358463546,1745178639939,-2687.66176159,0.00016877,2]
[358463547,1745178639953,-153.0,0.000169,2]
[358463548,1745178639963,-153.0,0.000169,2]
[358463549,1745178639973,-180.593159,0.00016901,2]
[358463550,1745178639983,-180.593159,0.00016901,2]
[358463551,1745178639993,-151.0,0.00016901,2]
[358463552,1745178640003,-151.0,0.00016901,2]
[358463553,1745178640013,-208.243582,0.00016901,2]
[358463554,1745178640022,-208.243582,0.00016901,2]
[358463555,1745178640031,-231.38130812,0.00017,2]
[358463556,1745178640040,-628.38,0.00017,2]
[358463557,1745178640050,-292.6520096,0.00017,2]
[358463558,1745178640059,-208.629179,0.00017001,2]
[358463559,1745178640069,-151.0,0.00017001,2]
[358463560,1745178640078,-151.0,0.00017001,2]
[358463561,1745178640087,-151.0,0.00017001,2]
[358463562,1745178640096,-151.0,0.00017001,2]
[358463563,1745178640105,-151.0,0.00017001,2]
[358463564,1745178640115,-151.0,0.00017001,2]
[358463565,1745178640124,-151.0,0.00017001,2]
[358463566,1745178640133,-229.818965,0.00017001,2]
[358463567,1745178640143,-523.532459,0.00017001,2]
[358463568,1745178640152,-523.532459,0.00017001,2]
[358463569,1745178640162,-523.532459,0.00017001,2]
[358463570,1745178640171,-523.532459,0.00017001,2]
[358463571,1745178640180,-523.532459,0.00017001,2]
[358463572,1745178640190,-523.532459,0.00017001,2]
[358463573,1745178640199,-523.532459,0.00017001,2]
[358463574,1745178640208,-523.532459,0.00017001,2]
[358463575,1745178640218,-231.146601,0.00017001,2]
[358463577,1745178640227,-231.146601,0.00017001,2]
[358463578,1745178640236,-231.146601,0.00017001,2]
[358463579,1745178640245,-231.146601,0.00017001,2]
[358463580,1745178640254,-231.146601,0.00017001,2]
[358463581,1745178640263,-231.146601,0.00017001,2]
[358463582,1745178640272,-231.146601,0.00017001,2]
[358463583,1745178640281,-231.146601,0.00017001,2]
[358463584,1745178640290,-231.146601,0.00017001,2]
[358463585,1745178640300,-231.146601,0.00017001,2]
[358463586,1745178640309,-151.0,0.00017001,2]
[358463587,1745178640318,-151.0,0.00017001,2]
[358463588,1745178640331,-151.0,0.00017001,2]
[358463589,1745178640341,-151.0,0.00017001,2]
[358463590,1745178640350,-151.0,0.00017001,2]
[358463591,1745178640359,-151.0,0.00017001,2]
[358463592,1745178640369,-151.0,0.00017001,2]
[358463593,1745178640378,-298.903274,0.00017001,2]
[358463594,1745178640387,-151.0,0.00017001,2]
[358463595,1745178640396,-151.0,0.00017001,2]
[358463596,1745178640405,-151.0,0.00017001,2]
[358463597,1745178640414,-151.0,0.00017001,2]
[358463598,1745178640423,-151.0,0.00017001,2]
[358463599,1745178640432,-298.944038,0.00017001,2]
[358463600,1745178640441,-151.0,0.00017001,2]
[358463601,1745178640450,-151.28539,0.00017001,2]
[358463602,1745178640459,-178.077753,0.00017001,2]
[358463603,1745178640469,-180.593159,0.00017001,2]
[358463604,1745178640478,-180.593159,0.00017001,2]
[358463605,1745178640487,-151.0,0.00017001,2]
[358463606,1745178640496,-151.0,0.00017001,2]
[358463607,1745178640506,-208.243582,0.00017001,2]
[358463608,1745178640515,-208.243582,0.00017001,2]
[358463609,1745178640524,-273.677301,0.00017002,2]
[358463610,1745178640534,-151.0,0.00017002,2]
[358463611,1745178640543,-151.0,0.00017002,2]
[358463612,1745178640553,-151.0,0.00017002,2]
[358463613,1745178640562,-151.0,0.00017002,2]
[358463614,1745178640571,-194.725833,0.00017002,2]
[358463615,1745178640580,-194.725833,0.00017002,2]
[358463616,1745178640589,-194.725833,0.00017002,2]
[358463617,1745178640599,-194.725833,0.00017002,2]
[358463618,1745178640608,-151.0,0.00017003,2]
[358463619,1745178640617,-151.0,0.00017003,2]
[358463620,1745178640626,-151.0,0.00017003,2]
[358463621,1745178640635,-160.702964,0.00017003,2]
[358463622,1745178640644,-151.0,0.00017003,2]
[358463623,1745178640654,-176.344676,0.00017003,2]
[358463624,1745178640663,-151.0,0.00017003,2]
[358463625,1745178640672,-151.0,0.00017003,2]
[358463626,1745178640681,-151.0,0.00017003,2]
[358463627,1745178640690,-151.0,0.00017003,2]
[358463628,1745178640699,-151.0,0.00017004,2]
[358463629,1745178640709,-151.0,0.00017004,2]
[358463630,1745178640718,-151.0,0.00017004,2]
[358463631,1745178640727,-151.0,0.00017004,2]
[358463632,1745178640737,-151.0,0.00017004,2]
[358463633,1745178640746,-194.725833,0.00017004,2]
[358463634,1745178640755,-194.725833,0.00017004,2]
[358463635,1745178640764,-194.725833,0.00017004,2]
[358463636,1745178640774,-194.725833,0.00017004,2]
[358463637,1745178640783,-523.532459,0.00017004,2]
[358463638,1745178640792,-523.532459,0.00017004,2]
[358463639,1745178640801,-231.146601,0.00017004,2]
[358463640,1745178640810,-231.146601,0.00017004,2]
[358463641,1745178640819,-151.0,0.00017004,2]
[358463642,1745178640829,-500.65191945,0.00017073,2]
[358463643,1745178640838,-500.0,0.00017073,2]
[358463644,1745178640847,-500.0,0.00017073,2]
[358463645,1745178640856,-500.0,0.00017073,2]
[358463646,1745178640865,-500.0,0.00017073,2]
[358463647,1745178640874,-204.34750586,0.00017073,2]
[358463648,1745178640883,-585.86753328,0.00017073,2]
[358463649,1745178640892,-153.0,0.000171,2]
[358463650,1745178640901,-151.0,0.00017104,2]
[358463651,1745178640910,-500.0,0.00017104,2]
[358463652,1745178640919,-159.61042,0.0001711,2]
[358463653,1745178640928,-151.0,0.0001711,2]
[358463654,1745178640938,-151.0,0.0001711,2]
[358463655,1745178640947,-151.0,0.0001711,2]
[358463656,1745178640956,-151.0,0.0001711,2]
[358463657,1745178640966,-151.0,0.0001711,2]
[358463658,1745178640975,-151.0,0.0001711,2]
[358463659,1745178640986,-500.0,0.0001711,2]
[358463660,1745178640995,-151.0,0.0001711,2]
[358463661,1745178641005,-151.0,0.0001711,2]
[358463662,1745178641014,-151.0,0.0001711,2]
[358463663,1745178641024,-151.0,0.0001711,2]
[358463664,1745178641033,-32747.4361222,0.00017127,2]
[358463665,1745178641042,-1000.0,0.00017173,2]
[358463666,1745178641052,-500.0,0.00017173,2]
[358463667,1745178641061,-500.0,0.00017173,2]
[358463668,1745178641070,-500.0,0.00017173,2]
[358463669,1745178641079,-500.0,0.00017173,2]
[358463670,1745178641088,-502.02233803,0.00017173,2]
[358463671,1745178641098,-500.0,0.00017173,2]
[358463672,1745178641107,-500.0,0.00017173,2]
[358463673,1745178641116,-535.74182631,0.00017173,2]
[358463674,1745178641126,-160.33453005,0.00017173,2]
[358463675,1745178641135,-500.0,0.00017173,2]
[358463676,1745178641145,-500.0,0.00017173,2]
[358463677,1745178641154,-500.0,0.00017173,2]
[358463678,1745178641163,-500.0,0.00017173,2]
[358463679,1745178641172,-500.0,0.00017173,2]
[358463680,1745178641182,-634.21407953,0.00017173,2]
[358463681,1745178641191,-500.0,0.00017173,2]
[358463682,1745178641200,-500.0,0.00017173,2]
[358463683,1745178641209,-500.0,0.00017173,2]
[358463684,1745178641218,-500.0,0.00017173,2]
[358463685,1745178641228,-500.0,0.00017173,2]
[358463686,1745178641237,-500.0,0.00017173,2]
[358463687,1745178641247,-500.0,0.00017173,2]
[358463688,1745178641256,-500.0,0.00017173,2]
[358463689,1745178641265,-500.0,0.00017173,2]
[358463690,1745178641274,-510.04184805,0.00017173,2]
[358463691,1745178641283,-532.95683885,0.00017173,2]
[358463692,1745178641292,-500.0,0.00017173,2]
[358463693,1745178641301,-151.0,0.00017173,2]
[358463694,1745178641311,-151.0,0.00017173,2]
[358463695,1745178641320,-523.532459,0.00017173,2]
[358463696,1745178641331,-523.532459,0.00017173,2]
[358463697,1745178641342,-180.593159,0.00017173,2]
[358463698,1745178641351,-180.593159,0.00017173,2]
[358463699,1745178641360,-151.0,0.00017173,2]
[358463700,1745178641369,-271.06431,0.00017173,2]
[358463701,1745178641379,-208.243582,0.00017173,2]
[358463702,1745178641388,-208.243582,0.00017173,2]
[358463703,1745178641398,-500.0,0.00017199,2]
[358463704,1745178641408,-151.0,0.00017199,2]
[358463705,1745178641417,-151.0,0.00017199,2]
[358463706,1745178641426,-194.725833,0.00017199,2]
[358463707,1745178641435,-194.725833,0.00017199,2]
[358463708,1745178641444,-5253.32621773,0.000172,3]
[358463709,1745178641453,-337722.93214566,0.000172,2]
[358463710,1745178641463,-151.0,0.000172,2]
[358463711,1745178641472,-151.0,0.000172,2]
[358463712,1745178641481,-151.0,0.000172,2]
[358463713,1745178641491,-153.0,0.000172,2]
[358463714,1745178641501,-153.0,0.000172,2]
[358463715,1745178641511,-749.2352521,0.000172,2]
[358463716,1745178641521,-151.0,0.000172,2]
[358463717,1745178641530,-151.0,0.000172,2]
[358463718,1745178641539,-151.0,0.000172,2]
[358463719,1745178641548,-151.0,0.000172,2]
[358463720,1745178641557,-151.0,0.000172,2]
[358463721,1745178641566,-194.725833,0.000172,2]
[358463722,1745178641575,-194.725833,0.000172,2]
[358463723,1745178641584,-523.532459,0.000172,2]
[358463724,1745178641593,-523.532459,0.000172,2]
[358463725,1745178641603,-231.146601,0.000172,2]
[358463726,1745178641611,-231.146601,0.000172,2]
[358463727,1745178641620,-151.0,0.000172,2]
[358463728,1745178641630,-180.593159,0.000172,2]
[358463729,1745178641639,-180.593159,0.000172,2]
[358463730,1745178641648,-151.0,0.000172,2]
[358463731,1745178641658,-151.0,0.000172,2]
[358463732,1745178641667,-208.243582,0.000172,2]
[358463733,1745178641676,-208.243582,0.000172,2]
[358463734,1745178641685,-169.0,0.00017232,2]
[358463735,1745178641695,-319.0,0.00017232,2]
[358463736,1745178641704,-317.0,0.00017232,2]
[358463737,1745178641713,-359.0,0.00017232,2]
[358463738,1745178641723,-359.0,0.00017232,2]
[358463739,1745178641732,-359.0,0.00017232,2]
[358463740,1745178641741,-359.0,0.00017232,2]
[358463741,1745178641752,-359.0,0.00017232,2]
[358463742,1745178641762,-198.0,0.00017241,2]
[358463743,1745178641771,-500.0,0.00017241,2]
[358463744,1745178641780,-151.0,0.00017247,2]
[358463745,1745178641789,-151.0,0.00017247,2]
[358463746,1745178641798,-151.0,0.00017247,2]
[358463747,1745178641807,-351.06000716,0.00017247,2]
[358463748,1745178641816,-151.0,0.00017247,2]
[358463749,1745178641826,-151.0,0.00017247,2]
[358463750,1745178641835,-705.0,0.00017254,2]
[358463751,1745178641843,-544.0,0.00017254,2]
[358463752,1745178641852,-402.0,0.00017254,2]
[358463753,1745178641862,-172220.74894224,0.000173,2]
[358463754,1745178641871,-151.0,0.000173,2]
[358463755,1745178641880,-151.0,0.000173,2]
[358463756,1745178641889,-241.75605153,0.000173,2]
[358463757,1745178641899,-151.0,0.000173,2]
[358463758,1745178641908,-161.47081941,0.000173,2]
[358463759,1745178641917,-198.0,0.000173,2]
[358463760,1745178641927,-151.0,0.000173,2]
[358463761,1745178641936,-151.0,0.000173,2]
[358463762,1745178641945,-151.0,0.000173,2]
[358463763,1745178641955,-151.0,0.000173,2]
[358463764,1745178641964,-194.725833,0.000173,2]
[358463765,1745178641973,-194.725833,0.000173,2]
[358463766,1745178641983,-523.532459,0.000173,2]
[358463767,1745178641992,-523.532459,0.000173,2]
[358463768,1745178642004,-231.146601,0.000173,2]
[358463769,1745178642013,-231.146601,0.000173,2]
[358463770,1745178642022,-151.0,0.000173,2]
[358463771,1745178642032,-180.593159,0.000173,2]
[358463772,1745178642042,-180.59315,0.000173,2]
[358463773,1745178642051,-151.0,0.000173,2]
[358463774,1745178642061,-208.243582,0.000173,2]
[358463775,1745178642070,-208.243578,0.000173,2]
[358463776,1745178642080,-500.0,0.00017336,2]
[358463777,1745178642089,-215.83163986,0.00017336,2]
[358463778,1745178642099,-500.0,0.00017378,2]
[358463779,1745178642108,-212.545,0.00017384,2]
[358463780,1745178642118,-151.0,0.00017384,2]
[358463781,1745178642127,-151.0,0.00017384,2]
[358463782,1745178642137,-244.84784287,0.00017384,2]
[358463783,1745178642146,-198.0,0.00017384,2]
[358463784,1745178642155,-151.0,0.00017384,2]
[358463785,1745178642165,-635.0,0.000174,2]
[358463786,1745178642174,-151.0,0.00017437,2]
[358463787,1745178642183,-613.4508064,0.00017473,2]
[358463788,1745178642192,-177.23183137,0.00017489,2]
[358463789,1745178642203,-2739.61130347,0.00017489,2]
[358463790,1745178642212,-198.0,0.000175,2]
[358463791,1745178642222,-198.0,0.000175,2]
[358463792,1745178642231,-190.46999999,0.000175,2]
[358463793,1745178642241,-23017.63703706,0.000175,4]
[358463794,1745178642250,-251.13,0.000175,2]
[358463795,1745178642260,-3141.9,0.000175,2]
[358463796,1745178642269,-153.0,0.000175,2]
[358463797,1745178642278,-151.0,0.000175,2]
[358463798,1745178642288,-151.0,0.000175,2]
[358463799,1745178642297,-194.725833,0.000175,2]
[358463800,1745178642307,-194.725833,0.000175,2]
[358463801,1745178642316,-523.532459,0.000175,2]
[358463802,1745178642329,-523.532459,0.000175,2]
[358463803,1745178642339,-231.146601,0.000175,2]
[358463804,1745178642349,-231.146601,0.000175,2]
[358463805,1745178642358,-151.0,0.000175,2]
[358463806,1745178642367,-401.1274208,0.000175,2]
[358463807,1745178642378,-500.0,0.00017515,2]
[358463808,1745178642388,-246.1253313,0.00017521,2]
[358463809,1745178642397,-151.0,0.00017521,2]
[358463810,1745178642408,-196.0,0.00017521,2]
[358463811,1745178642418,-200.73579483,0.00017574,2]
[358463812,1745178642428,-500.0,0.00017652,2]
[358463813,1745178642438,-215.72504525,0.00017658,2]
[358463814,1745178642447,-500.0,0.0001775,2]
[358463815,1745178642457,-500.0,0.00017789,2]
[358463816,1745178642467,-420.0,0.00017795,2]
[358463817,1745178642477,-420.0,0.00017795,2]
[358463818,1745178642486,-420.0,0.00017884,2]
[358463819,1745178642497,-242.799,0.0001789,2]
[358463820,1745178642507,-3002.74472583,0.000179,2]
[358463821,1745178642517,-500.0,0.00017926,2]
[358463822,1745178642526,-1021.39393475,0.00018,2]
[358463823,1745178642535,-300.0,0.00018,2]
[358463825,1745178642545,-27742.1091589,0.00018,2]
[358463827,1745178642554,-6000.0,0.00018,3]
[358463828,1745178642563,-517.478,0.00018,2]
[358463829,1745178642573,-151.0,0.00018,2]
[358463830,1745178642582,-151.0,0.00018,2]
[358463831,1745178642591,-194.725833,0.00018,2]
[358463832,1745178642601,-194.725833,0.00018,2]
[358463833,1745178642610,-523.532459,0.00018,2]
[358463834,1745178642620,-523.532461,0.00018,2]
[358463835,1745178642630,-231.146601,0.00018,2]
[358463836,1745178642639,-231.146605,0.00018,2]
[358463837,1745178642649,-151.0,0.00018,2]
[358463838,1745178642658,-160.0,0.00018,3]
[358463839,1745178642667,-839.54484285,0.00018,3]
[358463840,1745178642677,-160.0,0.00018,3]
[358463841,1745178642687,-12565.32410885,0.00018,3]
[358463842,1745178642696,-500.0,0.00018063,2]
[358463843,1745178642706,-500.0,0.000182,2]
[358463844,1745178642715,-151.000001,0.000183,2]
[358463845,1745178642724,-194.725833,0.000183,2]
[358463846,1745178642734,-194.72583,0.000183,2]
[358463847,1745178642744,-8404.57657896,0.000183,2]
[358463848,1745178642754,-8404.57657886,0.000183,2]
[358463849,1745178642763,-500.0,0.00018337,2]
[358463850,1745178642774,-1393.64278508,0.00018377,2]
[358463851,1745178642783,-500.0,0.00018378,2]
[358463852,1745178642793,-538.247,0.00018378,2]
[358463853,1745178642802,-500.0,0.00018474,2]
[358463854,1745178642811,-10110.725818,0.00018476,5]
[358463855,1745178642820,-9014.32300886,0.00018476,2]
[358463856,1745178642928,-151.0,0.000185,2]
[358463857,1745178642953,-3073.67823131,0.000185,2]
[358463858,1745178642963,-500.0,0.00018611,2]
[358463859,1745178642972,-151.0,0.000187,2]
[358463860,1745178642982,-500.0,0.00018748,2]
[358463861,1745178642991,-73310.26075954,0.00018787,120]
[358463862,1745178643002,-151.0,0.000188,2]
[358463863,1745178643012,-57385.54878904,0.0001881,2]
[358463864,1745178643022,-8404.57657886,0.00018831,2]
[358463865,1745178643031,-500.0,0.00018885,2]
[358463866,1745178643041,-2399.76886816,0.000189,2]
[358463867,1745178643051,-2000.0,0.00018904,2]
[358463868,1745178643060,-205837.48481302,0.00019,2]
[358463869,1745178643069,-500.0,0.00019,2]
[358463870,1745178643079,-500.0,0.00019,2]
[358463871,1745178643088,-500.0,0.00019,2]
[358463872,1745178643097,-552.05316151,0.00019,2]
[358463873,1745178643107,-500.0,0.00019,2]
[358463874,1745178643116,-500.0,0.00019,2]
[358463875,1745178643125,-500.0,0.00019,2]
[358463876,1745178643135,-897.11441608,0.00019,2]
[358463877,1745178643144,-500.0,0.00019,2]
[358463878,1745178643154,-500.0,0.00019,2]
[358463879,1745178643163,-849.69872769,0.00019,2]
[358463881,1745178643173,-500.0,0.00019,2]
[358463883,1745178643183,-500.0,0.00019,2]
[358463886,1745178643193,-500.0,0.00019,2]
[358463888,1745178643203,-500.0,0.00019,2]
[358463890,1745178643212,-700.0,0.00019,2]
[358463891,1745178643221,-500.0,0.00019,2]
[358463892,1745178643230,-500.0,0.00019,2]
[358463893,1745178643240,-500.0,0.00019,2]
[358463894,1745178643249,-500.0,0.00019,2]
[358463895,1745178643260,-500.0,0.00019,2]
[358463896,1745178643269,-500.0,0.00019022,2]
[358463897,1745178643279,-160.0,0.0001911,2]
[358463898,1745178643289,-160.0,0.0001911,2]
[358463899,1745178643299,-160.0,0.0001911,2]
[358463900,1745178643308,-160.0,0.0001911,2]
[358463901,1745178643317,-160.0,0.0001911,2]
[358463902,1745178643330,-839.54484285,0.0001911,2]
[358463903,1745178643339,-160.0,0.0001911,2]
[358463904,1745178643348,-420.58168056,0.0001911,2]
[358463905,1745178643358,-12565.32410885,0.0001911,2]
[358463906,1745178643369,-500.0,0.00019159,2]
[358463907,1745178643378,-500.0,0.00019173,2]
[358463908,1745178643388,-500.0,0.00019173,2]
[358463909,1745178643397,-443.72418048,0.00019173,2]
[358463910,1745178643409,-500.0,0.00019173,2]
[358463911,1745178643419,-500.29793326,0.00019173,2]
[358463912,1745178643429,-500.0,0.00019178,2]
[358463913,1745178643439,-500.0,0.00019178,2]
[358463914,1745178643447,-500.0,0.00019178,2]